[Event "Early-Titled-Tuesday-Blitz-February-06-2024"]
[Site "Chess.com"]
[Date "2024.02.06"]
[Round "7"]
[White "traviscottofficial"]
[Black "Actuary44"]
[Result "1-0"]
[WhiteElo "2687"]
[BlackElo "2486"]
[TimeControl "180+1"]
[EndTime "9:20:02 PST"]
[Termination "traviscottofficial won by resignation"]

1. b3 {[%clk 0:02:59.8]} 1... e5 {[%clk 0:02:59]} 2. Bb2 {[%clk 0:03:00.7]} 2...
d6 {[%clk 0:02:59.3]} 3. e3 {[%clk 0:03:00.1]} 3... f5 {[%clk 0:02:57.9]} 4. Nf3
{[%clk 0:03:00.5]} 4... g6 {[%clk 0:02:57]} 5. d4 {[%clk 0:03:00.3]} 5... e4
{[%clk 0:02:57.1]} 6. d5 {[%clk 0:02:59.7]} 6... Nf6 {[%clk 0:02:57.1]} 7. Ng5
{[%clk 0:02:58.3]} 7... Bg7 {[%clk 0:02:56.7]} 8. h4 {[%clk 0:02:50.4]} 8... h6
{[%clk 0:02:54]} 9. Nh3 {[%clk 0:02:50.4]} 9... O-O {[%clk 0:02:50.5]} 10. Nf4
{[%clk 0:02:50.1]} 10... Kh7 {[%clk 0:02:50.6]} 11. c4 {[%clk 0:02:46.3]} 11...
c5 {[%clk 0:02:42.2]} 12. Be2 {[%clk 0:02:44.5]} 12... Na6 {[%clk 0:02:41.8]}
13. Nd2 {[%clk 0:02:37.5]} 13... Nc7 {[%clk 0:02:41.9]} 14. Nf1 {[%clk
0:02:37.9]} 14... a6 {[%clk 0:02:34.9]} 15. a4 {[%clk 0:02:37.7]} 15... Rb8
{[%clk 0:02:34.5]} 16. a5 {[%clk 0:02:37]} 16... b5 {[%clk 0:02:34.6]} 17. axb6
{[%clk 0:02:37.4]} 17... Rxb6 {[%clk 0:02:34.9]} 18. Ng3 {[%clk 0:02:34.4]}
18... Bd7 {[%clk 0:02:33.2]} 19. Qc2 {[%clk 0:02:19.9]} 19... Qb8 {[%clk
0:02:31.2]} 20. Bd1 {[%clk 0:02:20.5]} 20... Qb7 {[%clk 0:02:21.9]} 21. h5
{[%clk 0:02:17.2]} 21... g5 {[%clk 0:02:21.5]} 22. Ng6 {[%clk 0:02:17.3]} 22...
Rb8 {[%clk 0:02:19.4]} 23. Ne7 {[%clk 0:02:16.9]} 23... Rxb3 {[%clk 0:01:55.4]}
24. Bc1 {[%clk 0:02:00.8]} 24... Nfxd5 {[%clk 0:01:39.9]} 25. cxd5 {[%clk
0:01:34.3]} 25... Bxa1 {[%clk 0:01:38.6]} 26. Nexf5 {[%clk 0:01:35]} 26... Bxf5
{[%clk 0:01:26.4]} 27. Nxf5 {[%clk 0:01:34.9]} 27... Qxd5 {[%clk 0:01:26.6]} 28.
Ne7 {[%clk 0:01:22.6]} 28... Qd3 {[%clk 0:01:08.3]} 29. Nc6 {[%clk 0:01:22.5]}
29... Bc3+ {[%clk 0:01:01.4]} 30. Bd2 {[%clk 0:01:18.5]} 30... Qxc2 {[%clk
0:00:39.5]} 31. Bxc2 {[%clk 0:01:19.4]} 31... Rb1+ {[%clk 0:00:39]} 32. Ke2
{[%clk 0:01:19.9]} 32... R1b2 {[%clk 0:00:24.1]} 33. Bxe4+ {[%clk 0:01:11.6]}
33... Kg7 {[%clk 0:00:24.3]} 34. Nxb8 {[%clk 0:01:11.5]} 34... Bxd2 {[%clk
0:00:21.9]} 35. Nc6 {[%clk 0:01:01.6]} 35... d5 {[%clk 0:00:22.2]} 36. Bg6
{[%clk 0:00:59.8]} 36... Bc3+ {[%clk 0:00:22.4]} 37. Kf3 {[%clk 0:00:58.8]}
37... Bf6 {[%clk 0:00:18.1]} 38. Rc1 {[%clk 0:00:56.6]} 38... Ne6 {[%clk
0:00:17.5]} 39. Bf5 {[%clk 0:00:53.4]} 39... g4+ {[%clk 0:00:11.9]} 40. Kxg4
{[%clk 0:00:50.7]} 40... Kf7 {[%clk 0:00:06.8]} 41. Bxe6+ {[%clk 0:00:38.5]}
41... Kxe6 {[%clk 0:00:07.7]} 42. Rxc5 {[%clk 0:00:37.7]} 42... Rxf2 {[%clk
0:00:07.4]} 43. Ra5 {[%clk 0:00:37.5]} 43... Rxg2+ {[%clk 0:00:07.2]} 44. Kf3
{[%clk 0:00:37.8]} 44... Rh2 {[%clk 0:00:07]} 45. Rxa6 {[%clk 0:00:37.4]} 45...
Kf5 {[%clk 0:00:06.8]} 46. Nb4 {[%clk 0:00:29.5]} 46... Rh3+ {[%clk 0:00:07]}
47. Ke2 {[%clk 0:00:28.6]} 47... Ke4 {[%clk 0:00:03.9]} 48. Rxf6 {[%clk
0:00:26.7]} 48... Rxh5 {[%clk 0:00:04.1]} 49. Rf4+ {[%clk 0:00:21.4]} 49... Ke5
{[%clk 0:00:04.2]} 50. Kd3 {[%clk 0:00:18.7]} 50... Rh3 {[%clk 0:00:03.8]} 51.
Nc6+ {[%clk 0:00:18.4]} 51... Kd6 {[%clk 0:00:04]} 52. Nd4 {[%clk 0:00:19.3]}
52... h5 {[%clk 0:00:04.6]} 53. Nf5+ {[%clk 0:00:19.7]} 53... Ke5 {[%clk
0:00:04.8]} 54. Nh4 {[%clk 0:00:20.3]} 54... Rh1 {[%clk 0:00:04.3]} 55. Nf3+
{[%clk 0:00:20.1]} 55... Kd6 {[%clk 0:00:04.4]} 56. Rf5 {[%clk 0:00:20.4]} 56...
h4 {[%clk 0:00:04.1]} 57. Rh5 {[%clk 0:00:19.2]} 57... h3 {[%clk 0:00:04.4]} 58.
Ke2 {[%clk 0:00:19.1]} 58... Kc5 {[%clk 0:00:03.4]} 59. Nd2 {[%clk 0:00:17.8]}
59... Kb4 {[%clk 0:00:02.1]} 60. Rxd5 {[%clk 0:00:16.6]} 60... h2 {[%clk
0:00:02.5]} 61. Rh5 {[%clk 0:00:17.1]} 61... Kc3 {[%clk 0:00:02.9]} 62. Ne4+
{[%clk 0:00:17.3]} 62... Kc4 {[%clk 0:00:02.7]} 63. Nf2 {[%clk 0:00:17.7]} 63...
Ra1 {[%clk 0:00:02.3]} 64. Rxh2 {[%clk 0:00:18.3]} 64... Ra2+ {[%clk 0:00:03.2]}
65. Kf3 {[%clk 0:00:18.8]} 65... Kd5 {[%clk 0:00:02.9]} 66. Rh5+ {[%clk
0:00:19.2]} 66... Ke6 {[%clk 0:00:03.4]} 67. Ne4 {[%clk 0:00:19.5]} 67... Ra1
{[%clk 0:00:02.8]} 68. Ng3 {[%clk 0:00:19.5]} 68... Kf6 {[%clk 0:00:03.1]} 69.
Rh6+ {[%clk 0:00:18.3]} 69... Kg5 {[%clk 0:00:02.9]} 70. Rb6 {[%clk 0:00:18.6]}
70... Ra3 {[%clk 0:00:02.4]} 71. Rb5+ {[%clk 0:00:18.8]} 71... Kf6 {[%clk
0:00:02.8]} 72. Kf4 {[%clk 0:00:19.5]} 72... Ke6 {[%clk 0:00:02.9]} 73. e4
{[%clk 0:00:19.5]} 73... Ra1 {[%clk 0:00:03.8]} 74. Rb6+ {[%clk 0:00:19.8]}
74... Kd7 {[%clk 0:00:04.5]} 75. Nf5 {[%clk 0:00:19.9]} 75... Rf1+ {[%clk
0:00:04.5]} 76. Ke5 {[%clk 0:00:20]} 76... Kc7 {[%clk 0:00:05.4]} 77. Rh6 {[%clk
0:00:20.2]} 77... Kd7 {[%clk 0:00:03.7]} 78. Rh7+ {[%clk 0:00:20.7]} 78... Kc6
{[%clk 0:00:04.2]} 79. Nd4+ {[%clk 0:00:21.1]} 79... Kb6 {[%clk 0:00:03.7]} 80.
Kd5 {[%clk 0:00:20.8]} 80... Rd1 {[%clk 0:00:03.3]} 81. e5 {[%clk 0:00:21.3]}
81... Rg1 {[%clk 0:00:02.7]} 82. e6 {[%clk 0:00:21.8]} 82... Rg5+ {[%clk
0:00:03.6]} 83. Kd6 {[%clk 0:00:22.3]} 83... Rg6 {[%clk 0:00:03.5]} 84. Nc6
{[%clk 0:00:21]} 84... Kb5 {[%clk 0:00:03.3]} 85. Ne5 {[%clk 0:00:21]} 85... Rf6
{[%clk 0:00:03.5]} 86. Kd7 {[%clk 0:00:19.8]} 86... Rf5 {[%clk 0:00:04]} 87. Nf7
{[%clk 0:00:19.8]} 87... Kc5 {[%clk 0:00:04.3]} 88. e7 {[%clk 0:00:19.4]} 88...
Rd5+ {[%clk 0:00:04.9]} 89. Kc7 {[%clk 0:00:19.4]} 1-0

[Event "Early-Titled-Tuesday-Blitz-February-06-2024"]
[Site "Chess.com"]
[Date "2024.02.06"]
[Round "7"]
[White "tusplingher"]
[Black "Roedor"]
[Result "1/2-1/2"]
[WhiteElo "2448"]
[BlackElo "2335"]
[TimeControl "180+1"]
[EndTime "9:20:47 PST"]
[Termination "Game drawn by 50-move rule"]

1. e4 {[%clk 0:03:00.9]} 1... e5 {[%clk 0:02:59.9]} 2. Nf3 {[%clk 0:03:00.5]}
2... Nc6 {[%clk 0:02:59.8]} 3. Nc3 {[%clk 0:02:59.3]} 3... Nf6 {[%clk
0:02:58.8]} 4. d4 {[%clk 0:02:59.2]} 4... exd4 {[%clk 0:02:59.1]} 5. Nxd4 {[%clk
0:02:59.3]} 5... Bb4 {[%clk 0:02:58.9]} 6. Nxc6 {[%clk 0:02:59.7]} 6... bxc6
{[%clk 0:02:59.5]} 7. Bd3 {[%clk 0:03:00.4]} 7... d5 {[%clk 0:02:59.3]} 8. exd5
{[%clk 0:02:58]} 8... cxd5 {[%clk 0:03:00.2]} 9. O-O {[%clk 0:02:58]} 9... O-O
{[%clk 0:02:59.9]} 10. Qf3 {[%clk 0:02:57.2]} 10... c6 {[%clk 0:02:59.7]} 11. h3
{[%clk 0:02:57.4]} 11... Be6 {[%clk 0:02:58.4]} 12. Bf4 {[%clk 0:02:57.5]} 12...
Bd6 {[%clk 0:02:57.5]} 13. a3 {[%clk 0:02:55.2]} 13... Rb8 {[%clk 0:02:56.7]}
14. Na4 {[%clk 0:02:49.8]} 14... Bxf4 {[%clk 0:02:52.6]} 15. Qxf4 {[%clk
0:02:49]} 15... h6 {[%clk 0:02:52.8]} 16. b4 {[%clk 0:02:47.9]} 16... Nd7 {[%clk
0:02:36.5]} 17. Rad1 {[%clk 0:02:44.7]} 17... Qe7 {[%clk 0:02:27]} 18. Qe3
{[%clk 0:02:37.3]} 18... Nb6 {[%clk 0:02:23.2]} 19. Nc5 {[%clk 0:02:32.5]} 19...
Rbd8 {[%clk 0:02:11.8]} 20. Rfe1 {[%clk 0:02:31.5]} 20... Rfe8 {[%clk
0:02:04.8]} 21. Qg3 {[%clk 0:02:23.9]} 21... Qg5 {[%clk 0:01:59.2]} 22. Qxg5
{[%clk 0:02:17.9]} 22... hxg5 {[%clk 0:02:00.1]} 23. Re5 {[%clk 0:02:14.1]}
23... g4 {[%clk 0:01:38.7]} 24. Nxe6 {[%clk 0:02:09.6]} 24... Rxe6 {[%clk
0:01:39.6]} 25. Rxe6 {[%clk 0:02:08.9]} 25... fxe6 {[%clk 0:01:40.5]} 26. hxg4
{[%clk 0:02:09.1]} 26... e5 {[%clk 0:01:40.7]} 27. Bf5 {[%clk 0:02:06.7]} 27...
Kf7 {[%clk 0:01:39.9]} 28. Rd3 {[%clk 0:02:01.5]} 28... e4 {[%clk 0:01:39]} 29.
Rc3 {[%clk 0:01:57]} 29... g6 {[%clk 0:01:33.1]} 30. Rxc6 {[%clk 0:01:51.7]}
30... gxf5 {[%clk 0:01:30.2]} 31. gxf5 {[%clk 0:01:52.1]} 31... d4 {[%clk
0:01:28.7]} 32. Kf1 {[%clk 0:01:48.4]} 32... d3 {[%clk 0:01:28.9]} 33. cxd3
{[%clk 0:01:48.4]} 33... exd3 {[%clk 0:01:29.8]} 34. Ke1 {[%clk 0:01:47.8]}
34... d2+ {[%clk 0:01:27.7]} 35. Kd1 {[%clk 0:01:48.1]} 35... Na4 {[%clk
0:01:26.9]} 36. Rc2 {[%clk 0:01:45.8]} 36... Kf6 {[%clk 0:01:26.1]} 37. g4
{[%clk 0:01:44.1]} 37... Rd3 {[%clk 0:01:18.3]} 38. Rxd2 {[%clk 0:01:38]} 38...
Rxa3 {[%clk 0:01:17.1]} 39. Rd6+ {[%clk 0:01:34.9]} 39... Ke5 {[%clk 0:01:14]}
40. Re6+ {[%clk 0:01:31.9]} 40... Kd4 {[%clk 0:01:13.6]} 41. f6 {[%clk
0:01:29.6]} 41... Rf3 {[%clk 0:01:09.5]} 42. Ke2 {[%clk 0:01:19.7]} 42... Rf4
{[%clk 0:01:09.5]} 43. g5 {[%clk 0:01:19.9]} 43... Nc3+ {[%clk 0:01:07.7]} 44.
Ke1 {[%clk 0:01:12.7]} 44... Ne4 {[%clk 0:01:00]} 45. g6 {[%clk 0:00:24.7]}
45... Nxf6 {[%clk 0:00:55.7]} 46. Kf1 {[%clk 0:00:21]} 46... Ne4 {[%clk
0:00:50.2]} 47. Kg1 {[%clk 0:00:20.3]} 47... Rg4+ {[%clk 0:00:49.2]} 48. Kh2
{[%clk 0:00:19.9]} 48... Rg5 {[%clk 0:00:49.2]} 49. f4 {[%clk 0:00:17.6]} 49...
Rg4 {[%clk 0:00:49]} 50. f5 {[%clk 0:00:16.5]} 50... Kd5 {[%clk 0:00:46.9]} 51.
Re7 {[%clk 0:00:13.6]} 51... a6 {[%clk 0:00:44.9]} 52. g7 {[%clk 0:00:12.9]}
52... Nf6 {[%clk 0:00:43.7]} 53. Kh3 {[%clk 0:00:11.6]} 53... Rg5 {[%clk
0:00:42.3]} 54. Re6 {[%clk 0:00:08.6]} 54... Ng8 {[%clk 0:00:40.3]} 55. Rxa6
{[%clk 0:00:05.7]} 55... Rxf5 {[%clk 0:00:39.5]} 56. Ra8 {[%clk 0:00:05.7]}
56... Nh6 {[%clk 0:00:38.1]} 57. Rh8 {[%clk 0:00:05]} 57... Rg5 {[%clk
0:00:37.1]} 58. Rxh6 {[%clk 0:00:03]} 58... Rxg7 {[%clk 0:00:37.3]} 59. Rb6
{[%clk 0:00:02.6]} 59... Rc7 {[%clk 0:00:37.4]} 60. Kg3 {[%clk 0:00:02.5]} 60...
Rc3+ {[%clk 0:00:36.2]} 61. Kf4 {[%clk 0:00:02.7]} 61... Rb3 {[%clk 0:00:36.6]}
62. Kf5 {[%clk 0:00:02.7]} 62... Kc4 {[%clk 0:00:36.6]} 63. Ke5 {[%clk
0:00:02.9]} 63... Rxb4 {[%clk 0:00:37]} 64. Rd6 {[%clk 0:00:03.4]} 64... Rb5+
{[%clk 0:00:36.7]} 65. Ke4 {[%clk 0:00:03.9]} 65... Rh5 {[%clk 0:00:33.3]} 66.
Rd4+ {[%clk 0:00:03.8]} 66... Kc5 {[%clk 0:00:33.3]} 67. Rd8 {[%clk 0:00:04.4]}
67... Rh4+ {[%clk 0:00:33.4]} 68. Kd3 {[%clk 0:00:04.7]} 68... Rh3+ {[%clk
0:00:33.8]} 69. Kc2 {[%clk 0:00:04.8]} 69... Rh2+ {[%clk 0:00:34.2]} 70. Kc3
{[%clk 0:00:04.8]} 70... Rh3+ {[%clk 0:00:34.4]} 71. Kc2 {[%clk 0:00:05]} 71...
Kc4 {[%clk 0:00:34.4]} 72. Rc8+ {[%clk 0:00:05.1]} 72... Kb4 {[%clk 0:00:34.8]}
73. Rb8+ {[%clk 0:00:05.4]} 73... Kc4 {[%clk 0:00:35]} 74. Rc8+ {[%clk
0:00:05.8]} 74... Kd4 {[%clk 0:00:35.5]} 75. Rd8+ {[%clk 0:00:06.3]} 75... Ke5
{[%clk 0:00:35.7]} 76. Re8+ {[%clk 0:00:06.6]} 76... Kd6 {[%clk 0:00:36.1]} 77.
Re2 {[%clk 0:00:06.8]} 77... Rg3 {[%clk 0:00:35.8]} 78. Rf2 {[%clk 0:00:06.9]}
78... Ra3 {[%clk 0:00:35.8]} 79. Kd2 {[%clk 0:00:06.7]} 79... Ke5 {[%clk
0:00:35.3]} 80. Re2+ {[%clk 0:00:06.5]} 80... Kd4 {[%clk 0:00:35.6]} 81. Ke1
{[%clk 0:00:06.8]} 81... Kd3 {[%clk 0:00:34.2]} 82. Kf2 {[%clk 0:00:06.8]} 82...
Ra8 {[%clk 0:00:33.4]} 83. Re3+ {[%clk 0:00:06.8]} 83... Kd4 {[%clk 0:00:33.5]}
84. Rf3 {[%clk 0:00:07.7]} 84... Ra2+ {[%clk 0:00:33.2]} 85. Kg3 {[%clk
0:00:08]} 85... Ke4 {[%clk 0:00:33.5]} 86. Rf6 {[%clk 0:00:08]} 86... Ra1 {[%clk
0:00:32.5]} 87. Rf4+ {[%clk 0:00:07.1]} 87... Ke5 {[%clk 0:00:32.7]} 88. Rf3
{[%clk 0:00:08]} 88... Rg1+ {[%clk 0:00:32.6]} 89. Kf2 {[%clk 0:00:08.5]} 89...
Rg8 {[%clk 0:00:32.8]} 90. Re3+ {[%clk 0:00:08.7]} 90... Kd4 {[%clk 0:00:32.9]}
91. Rf3 {[%clk 0:00:09.3]} 91... Rg7 {[%clk 0:00:31.7]} 92. Rf6 {[%clk
0:00:09.4]} 92... Ke5 {[%clk 0:00:31.2]} 93. Ra6 {[%clk 0:00:10]} 93... Rh7
{[%clk 0:00:29.9]} 94. Kf3 {[%clk 0:00:10.1]} 94... Rh3+ {[%clk 0:00:29.7]} 95.
Kg4 {[%clk 0:00:10.5]} 95... Rh1 {[%clk 0:00:29.6]} 96. Ra5+ {[%clk 0:00:10.2]}
96... Ke6 {[%clk 0:00:29]} 97. Kf4 {[%clk 0:00:08.9]} 97... Rh4+ {[%clk
0:00:27.7]} 98. Kg5 {[%clk 0:00:08.5]} 98... Rh1 {[%clk 0:00:27.9]} 99. Ra6+
{[%clk 0:00:09]} 99... Ke5 {[%clk 0:00:27.6]} 100. Ra5+ {[%clk 0:00:09.6]}
100... Kd4 {[%clk 0:00:27.9]} 101. Kf6 {[%clk 0:00:09.7]} 101... Rh6+ {[%clk
0:00:27.4]} 102. Ke7 {[%clk 0:00:08]} 102... Rb6 {[%clk 0:00:24.5]} 103. Rg5
{[%clk 0:00:07.7]} 103... Ke4 {[%clk 0:00:22.7]} 104. Kd7 {[%clk 0:00:07.9]}
104... Kf4 {[%clk 0:00:20.8]} 105. Rc5 {[%clk 0:00:08]} 105... Ke4 {[%clk
0:00:20.3]} 106. Kc7 {[%clk 0:00:08.3]} 106... Rh6 {[%clk 0:00:19.4]} 107. Rc1
{[%clk 0:00:08]} 107... Rh7+ {[%clk 0:00:18.4]} 108. Kd6 {[%clk 0:00:08]} 108...
Rh8 {[%clk 0:00:18.1]} 109. Ke7 {[%clk 0:00:08.1]} 109... Rh6 {[%clk 0:00:17.3]}
110. Kf7 {[%clk 0:00:08.1]} 110... Ra6 {[%clk 0:00:17.2]} 111. Re1+ {[%clk
0:00:07.4]} 111... Kf5 {[%clk 0:00:16.4]} 112. Rf1+ {[%clk 0:00:07.9]} 112...
Ke5 {[%clk 0:00:16.8]} 113. Kg7 {[%clk 0:00:08.3]} 113... Ra7+ {[%clk
0:00:15.9]} 1/2-1/2

[Event "Early-Titled-Tuesday-Blitz-February-06-2024"]
[Site "Chess.com"]
[Date "2024.02.06"]
[Round "8"]
[White "kecalk"]
[Black "BestStelker"]
[Result "1/2-1/2"]
[WhiteElo "2521"]
[BlackElo "2696"]
[TimeControl "180+1"]
[EndTime "9:22:20 PST"]
[Termination "Game drawn by repetition"]

1. e4 {[%clk 0:03:00.9]} 1... e6 {[%clk 0:02:58.2]} 2. d4 {[%clk 0:03:00.8]}
2... d5 {[%clk 0:02:59.1]} 3. exd5 {[%clk 0:03:01.7]} 3... exd5 {[%clk
0:02:58.6]} 4. Nf3 {[%clk 0:03:02.3]} 4... Nf6 {[%clk 0:02:59]} 5. Bd3 {[%clk
0:03:02]} 5... c5 {[%clk 0:02:59.5]} 6. O-O {[%clk 0:03:01.2]} 6... c4 {[%clk
0:03:00.1]} 7. Re1+ {[%clk 0:03:01.8]} 7... Be7 {[%clk 0:03:00.7]} 8. Bf1 {[%clk
0:03:02.6]} 8... O-O {[%clk 0:03:01.2]} 9. b3 {[%clk 0:03:03.3]} 9... cxb3
{[%clk 0:03:01.9]} 10. axb3 {[%clk 0:03:04.2]} 10... Nc6 {[%clk 0:03:02.6]} 11.
c3 {[%clk 0:03:04.3]} 11... Ne4 {[%clk 0:02:55.2]} 12. Nfd2 {[%clk 0:02:46.5]}
12... Nf6 {[%clk 0:02:43.6]} 13. Nf3 {[%clk 0:02:46.1]} 13... Ne4 {[%clk
0:02:43.7]} 14. Nfd2 {[%clk 0:02:43.6]} 14... Nf6 {[%clk 0:02:44]} 15. Nf3
{[%clk 0:02:43.5]} 1/2-1/2

[Event "Early-Titled-Tuesday-Blitz-February-06-2024"]
[Site "Chess.com"]
[Date "2024.02.06"]
[Round "8"]
[White "DarZay"]
[Black "xakevicius91"]
[Result "0-1"]
[WhiteElo "2292"]
[BlackElo "2610"]
[TimeControl "180+1"]
[EndTime "9:23:56 PST"]
[Termination "xakevicius91 won by resignation"]

1. e4 {[%clk 0:02:27.3]} 1... c5 {[%clk 0:02:58.3]} 2. Nf3 {[%clk 0:02:25.7]}
2... a6 {[%clk 0:02:58.6]} 3. d4 {[%clk 0:02:25.6]} 3... cxd4 {[%clk 0:02:58.8]}
4. Nxd4 {[%clk 0:02:26]} 4... Nf6 {[%clk 0:02:59.5]} 5. Nc3 {[%clk 0:02:26.4]}
5... e5 {[%clk 0:02:59.7]} 6. Nb3 {[%clk 0:02:23.3]} 6... Bb4 {[%clk 0:02:59.5]}
7. Bd3 {[%clk 0:02:21.8]} 7... Nc6 {[%clk 0:02:59.4]} 8. O-O {[%clk 0:02:21.1]}
8... Bxc3 {[%clk 0:02:59.6]} 9. bxc3 {[%clk 0:02:21]} 9... O-O {[%clk
0:02:59.9]} 10. Bg5 {[%clk 0:02:19.7]} 10... d6 {[%clk 0:02:59.2]} 11. Kh1
{[%clk 0:02:16]} 11... Be6 {[%clk 0:02:58.8]} 12. f4 {[%clk 0:02:14.9]} 12... h6
{[%clk 0:02:59.3]} 13. Bh4 {[%clk 0:02:14.8]} 13... exf4 {[%clk 0:02:52.7]} 14.
Nd4 {[%clk 0:02:00.2]} 14... g5 {[%clk 0:02:49.7]} 15. Bf2 {[%clk 0:01:47.6]}
15... Ne5 {[%clk 0:02:48]} 16. Nxe6 {[%clk 0:01:31.4]} 16... fxe6 {[%clk
0:02:48.9]} 17. Bd4 {[%clk 0:01:31.6]} 17... Qe7 {[%clk 0:02:45.2]} 18. Qf3
{[%clk 0:01:23.6]} 18... Nxf3 {[%clk 0:02:36.4]} 0-1

[Event "Early-Titled-Tuesday-Blitz-February-06-2024"]
[Site "Chess.com"]
[Date "2024.02.06"]
[Round "8"]
[White "ccccvhhhj"]
[Black "miraitrunks"]
[Result "1-0"]
[WhiteElo "2443"]
[BlackElo "2157"]
[TimeControl "180+1"]
[EndTime "9:24:42 PST"]
[Termination "ccccvhhhj won by resignation"]

1. d4 {[%clk 0:03:00.9]} 1... e6 {[%clk 0:03:00.3]} 2. Nc3 {[%clk 0:02:54]} 2...
d5 {[%clk 0:02:59.5]} 3. Bf4 {[%clk 0:02:53.2]} 3... Nf6 {[%clk 0:02:57.6]} 4.
f3 {[%clk 0:02:53.3]} 4... Bd6 {[%clk 0:02:54.3]} 5. Bg5 {[%clk 0:02:50.8]} 5...
Be7 {[%clk 0:02:51.2]} 6. e3 {[%clk 0:02:51]} 6... O-O {[%clk 0:02:51]} 7. h4
{[%clk 0:02:49.6]} 7... h6 {[%clk 0:02:51]} 8. Bf4 {[%clk 0:02:49.6]} 8... Bd6
{[%clk 0:02:50.2]} 9. Bxd6 {[%clk 0:02:48.4]} 9... Qxd6 {[%clk 0:02:50.9]} 10.
Nge2 {[%clk 0:02:47.3]} 10... e5 {[%clk 0:02:50]} 11. Qd2 {[%clk 0:02:47]} 11...
exd4 {[%clk 0:02:49.9]} 12. exd4 {[%clk 0:02:47.5]} 12... Nc6 {[%clk 0:02:46.6]}
13. O-O-O {[%clk 0:02:47.6]} 13... Rb8 {[%clk 0:02:27.8]} 14. g4 {[%clk
0:02:47.8]} 14... b5 {[%clk 0:02:27.5]} 15. g5 {[%clk 0:02:47]} 15... hxg5
{[%clk 0:02:26]} 16. hxg5 {[%clk 0:02:47.9]} 16... Nh7 {[%clk 0:02:25.3]} 17.
Nf4 {[%clk 0:02:41.6]} 17... Nxg5 {[%clk 0:02:16.5]} 18. Qh2 {[%clk 0:02:30.7]}
18... f6 {[%clk 0:02:11.5]} 19. Bd3 {[%clk 0:02:01.6]} 19... f5 {[%clk
0:01:51.9]} 20. Qh8+ {[%clk 0:01:49]} 20... Kf7 {[%clk 0:01:51.4]} 21. Qh5+
{[%clk 0:01:49.9]} 21... Kg8 {[%clk 0:01:45.1]} 22. Qxg5 {[%clk 0:01:49]} 1-0

[Event "Early-Titled-Tuesday-Blitz-February-06-2024"]
[Site "Chess.com"]
[Date "2024.02.06"]
[Round "8"]
[White "FARIZA2018"]
[Black "Cubitas"]
[Result "1-0"]
[WhiteElo "2530"]
[BlackElo "2693"]
[TimeControl "180+1"]
[EndTime "9:24:57 PST"]
[Termination "FARIZA2018 won by resignation"]

1. e4 {[%clk 0:03:00.9]} 1... e6 {[%clk 0:02:57.5]} 2. d4 {[%clk 0:02:58.8]}
2... d5 {[%clk 0:02:58.2]} 3. Nd2 {[%clk 0:02:59.3]} 3... dxe4 {[%clk
0:02:58.3]} 4. Nxe4 {[%clk 0:02:59.4]} 4... Nf6 {[%clk 0:02:58.3]} 5. Nxf6+
{[%clk 0:02:57.8]} 5... gxf6 {[%clk 0:02:59.2]} 6. Nf3 {[%clk 0:02:57.7]} 6...
Nc6 {[%clk 0:02:58.5]} 7. c3 {[%clk 0:02:54]} 7... a6 {[%clk 0:02:57.9]} 8. Bd3
{[%clk 0:02:54]} 8... f5 {[%clk 0:02:55.2]} 9. O-O {[%clk 0:02:48.4]} 9... Rg8
{[%clk 0:02:55.6]} 10. Kh1 {[%clk 0:02:48.2]} 10... b5 {[%clk 0:02:53.2]} 11. a4
{[%clk 0:02:45.7]} 11... Bb7 {[%clk 0:02:52.3]} 12. axb5 {[%clk 0:02:44.8]}
12... axb5 {[%clk 0:02:53.2]} 13. Rxa8 {[%clk 0:02:43.1]} 13... Qxa8 {[%clk
0:02:54.1]} 14. Bxb5 {[%clk 0:02:42.9]} 14... Kd8 {[%clk 0:02:46.3]} 15. d5
{[%clk 0:02:42.4]} 15... exd5 {[%clk 0:02:34.8]} 16. Qxd5+ {[%clk 0:02:41.6]}
16... Bd6 {[%clk 0:02:33.8]} 17. Qxf7 {[%clk 0:02:15.2]} 17... Ne7 {[%clk
0:02:32.4]} 18. Bg5 {[%clk 0:02:13.2]} 18... Bd5 {[%clk 0:01:34.2]} 19. Bxe7+
{[%clk 0:02:08.7]} 19... Bxe7 {[%clk 0:01:33.7]} 20. Rd1 {[%clk 0:02:08.1]} 1-0

[Event "Early-Titled-Tuesday-Blitz-February-06-2024"]
[Site "Chess.com"]
[Date "2024.02.06"]
[Round "8"]
[White "Kapitan_Bayan"]
[Black "Ati1517"]
[Result "1-0"]
[WhiteElo "2387"]
[BlackElo "2257"]
[TimeControl "180+1"]
[EndTime "9:25:10 PST"]
[Termination "Kapitan_Bayan won by checkmate"]

1. e4 {[%clk 0:02:59.9]} 1... c5 {[%clk 0:03:00.6]} 2. Nf3 {[%clk 0:03:00.2]}
2... d6 {[%clk 0:03:01.1]} 3. d4 {[%clk 0:03:00.5]} 3... cxd4 {[%clk 0:03:02]}
4. Nxd4 {[%clk 0:03:01.4]} 4... Nf6 {[%clk 0:03:02.7]} 5. f3 {[%clk 0:03:00.3]}
5... a6 {[%clk 0:03:03.2]} 6. c4 {[%clk 0:03:00.5]} 6... e6 {[%clk 0:03:03.8]}
7. Nc3 {[%clk 0:03:00.4]} 7... Be7 {[%clk 0:03:04.4]} 8. Be3 {[%clk 0:03:00.2]}
8... O-O {[%clk 0:03:04.9]} 9. Qd2 {[%clk 0:03:00.2]} 9... Nc6 {[%clk
0:03:05.6]} 10. Be2 {[%clk 0:03:00.2]} 10... Bd7 {[%clk 0:03:03.8]} 11. O-O
{[%clk 0:03:00.1]} 11... Nxd4 {[%clk 0:03:03.1]} 12. Bxd4 {[%clk 0:03:00]} 12...
Rc8 {[%clk 0:03:03.8]} 13. Rac1 {[%clk 0:02:59.4]} 13... e5 {[%clk 0:03:03.9]}
14. Be3 {[%clk 0:02:58.5]} 14... Be6 {[%clk 0:03:04.2]} 15. b3 {[%clk
0:02:57.5]} 15... h6 {[%clk 0:03:00.4]} 16. Rfd1 {[%clk 0:02:57.4]} 16... Kh8
{[%clk 0:02:55.2]} 17. a4 {[%clk 0:02:46.7]} 17... Qa5 {[%clk 0:02:43]} 18. Nd5
{[%clk 0:02:39.5]} 18... Qxd2 {[%clk 0:02:42.2]} 19. Bxd2 {[%clk 0:02:36.3]}
19... Nxd5 {[%clk 0:02:41.5]} 20. cxd5 {[%clk 0:02:35.8]} 20... Bd7 {[%clk
0:02:42.1]} 21. a5 {[%clk 0:02:34]} 21... f5 {[%clk 0:02:40.1]} 22. Be3 {[%clk
0:02:30.5]} 22... fxe4 {[%clk 0:02:36.1]} 23. fxe4 {[%clk 0:02:30.5]} 23... Bg5
{[%clk 0:02:31.4]} 24. Bxg5 {[%clk 0:02:27.2]} 24... hxg5 {[%clk 0:02:32]} 25.
h3 {[%clk 0:02:15]} 25... Bb5 {[%clk 0:02:20.5]} 26. Bg4 {[%clk 0:02:07.2]}
26... Rxc1 {[%clk 0:02:13.5]} 27. Rxc1 {[%clk 0:02:07.1]} 27... Rf7 {[%clk
0:02:10.2]} 28. Bf5 {[%clk 0:02:03.9]} 28... g6 {[%clk 0:01:50.2]} 29. Bxg6
{[%clk 0:02:00.1]} 29... Rf4 {[%clk 0:01:50.3]} 30. Bf5 {[%clk 0:01:58]} 30...
Bd3 {[%clk 0:01:47]} 31. g3 {[%clk 0:01:55.3]} 31... Rf3 {[%clk 0:01:45.3]} 32.
Kg2 {[%clk 0:01:54.4]} 32... Re3 {[%clk 0:01:45.4]} 33. Rc8+ {[%clk 0:01:48.4]}
33... Kg7 {[%clk 0:01:44.8]} 34. Rc7+ {[%clk 0:01:47.9]} 34... Kh6 {[%clk
0:01:45]} 35. Rh7# {[%clk 0:01:46.6]} 1-0